bitfinex/quotes_ETHUSD_20240709
["timestamp","ask_amount","ask_price","bid_price","bid_amount"]
[1720531527909,2.4932,3073.8,3073.1,3.25397]
[1720531528254,2.4932,3073.8,3073.1,3.25396]
[1720531528432,2.4932,3073.8,3073.3,3.25382]
[1720531528937,2.4145,3074.3,3073.3,3.31888624]
[1720531529122,2.4145,3074.3,3073.4,3.25371]
[1720531529447,2.4145,3074.3,3073.3,3.25382]
[1720531531246,2.4549,3075.0,3074.1,3.25298]
[1720531531451,2.4549,3075.0,3074.1,3.31802914]
[1720531532063,2.4549,3075.0,3074.2,3.25285]
[1720531532755,2.4549,3075.0,3074.3,3.25276]
[1720531533148,2.4549,3075.0,3074.4,6.08465]
[1720531533452,2.4549,3075.0,3074.5,3.25254]
[1720531533634,2.3234,3075.7,3074.5,3.25254]
[1720531533839,2.3234,3075.7,3074.5,3.31757954]
[1720531534061,2.3234,3075.7,3074.6,3.25241]
[1720531534371,2.3234,3075.7,3074.7,0.0650378]
[1720531534566,2.55574,3075.7,3074.7,0.0650378]
[1720531534773,2.55574,3075.7,3074.6,3.25235]
[1720531535841,2.55574,3075.7,3074.7,0.06503833]
[1720531536171,2.55574,3075.7,3074.8,2.832]
[1720531536362,2.3234,3075.7,3074.8,9.33628]
[1720531536566,2.3234,3075.7,3074.9,0.06503364]
[1720531537136,2.3234,3075.7,3074.9,3.31716364]
[1720531537549,2.3234,3075.7,3075.0,3.25193]
[1720531537769,2.3357,3076.1,3075.4,3.2516]
[1720531537981,2.3357,3076.1,3075.4,6.50313]
[1720531538283,2.3357,3076.1,3075.5,3.25146]
[1720531538866,2.3357,3076.1,3075.6,2.832]
[1720531539374,2.458,3076.8,3075.7,0.06502116]
[1720531539601,2.458,3076.8,3075.6,2.832]
[1720531539777,2.458,3076.8,3075.7,0.06501908]
[1720531540181,2.458,3076.8,3075.7,0.06501853]
[1720531540378,0.2458,3076.7,3075.6,9.33471]
[1720531540966,0.2458,3076.7,3075.6,2.832]
[1720531541292,0.2458,3076.7,3075.6,6.08337]
[1720531541801,3.2458,3076.7,3075.6,6.08337]
[1720531542003,0.57038,3076.6,3075.6,6.08337]
[1720531542700,0.2458,3076.7,3075.6,6.08337]
[1720531542906,3.2458,3076.7,3075.6,6.08337]
[1720531545103,3.2458,3076.7,3075.6,11.675]
[1720531545265,3.0,3076.7,3075.6,11.675]
[1720531545470,2.458,3076.8,3075.6,11.675]
[1720531546277,2.458,3076.8,3075.6,11.67497]
[1720531546874,2.458,3076.8,3075.7,3.25128]
[1720531548723,2.458,3076.8,3075.6,5.1723]
[1720531548928,2.458,3076.8,3075.6,2.832]
[1720531549074,0.55,3076.7,3075.4,3.2516]
[1720531549410,2.4196,3076.6,3075.3,5.67653]
[1720531549572,2.4196,3076.6,3075.4,3.25154]
[1720531551011,2.4196,3076.6,3075.6,2.832]
[1720531551305,2.4196,3076.6,3075.7,3.25122]
[1720531551876,2.4196,3076.6,3075.6,2.832]
[1720531552098,0.24196,3076.5,3075.6,2.832]
[1720531552889,2.4196,3076.6,3075.6,2.832]
[1720531556080,2.4196,3076.6,3075.7,3.25127]
[1720531556381,2.4196,3076.6,3075.7,3.25122]
[1720531556603,2.4196,3076.6,3075.7,6.50244]
[1720531556991,2.4196,3076.6,3075.7,3.25122]
[1720531561176,2.4196,3076.6,3075.6,2.832]
[1720531561824,2.4196,3076.6,3075.6,6.08339]
[1720531562110,2.4196,3076.6,3075.8,3.25108]
[1720531562274,2.2542,3077.5,3076.0,2.832]
[1720531562480,2.2542,3077.5,3076.0,2.89700929]
[1720531562481,2.3164,3077.3,3076.0,2.89700929]
[1720531562688,2.3164,3077.3,3076.0,2.832]
[1720531562910,0.55,3077.2,3076.0,6.14791025]
[1720531563101,2.3164,3077.3,3076.0,9.39880708]
[1720531563289,2.60304,3077.3,3076.1,3.25085]
[1720531563488,2.60304,3077.3,3076.2,0.06500667]
[1720531563683,2.60304,3077.3,3076.1,3.25085]
[1720531563883,2.60304,3077.3,3076.0,6.0829]
[1720531564109,2.748904,3077.2,3076.0,2.832]
[1720531564289,2.4886,3077.0,3076.0,2.832]
[1720531566512,2.4886,3077.0,3076.1,3.25086]
[1720531566827,2.4886,3077.0,3076.1,5.51676]
[1720531567034,2.4886,3077.0,3076.2,3.31575614]
[1720531567216,2.4771,3077.3,3076.4,2.832]
[1720531571592,2.4771,3077.3,3076.4,8.3477]
[1720531571794,2.4771,3077.3,3076.4,11.59816]
[1720531571993,2.4771,3077.3,3076.4,5.0972]
[1720531572206,2.4771,3077.3,3076.4,2.832]
[1720531586466,0.34043082,3077.2,3076.4,2.832]
[1720531587263,0.34043082,3077.2,3076.5,2.4988]
[1720531587488,0.34043082,3077.2,3076.6,3.25029]
[1720531588449,0.34043082,3077.2,3076.5,2.4988]
[1720531588867,0.34043082,3077.2,3076.5,5.74921]
[1720531589836,0.34043082,3077.2,3076.6,3.25032]
[1720531590364,0.34043082,3077.2,3076.8,2.832]
[1720531590559,0.34043082,3077.2,3076.6,6.5006]
[1720531590871,0.34043082,3077.2,3077.1,1.178]
[1720531592468,0.34043082,3077.2,3077.1,3.5115]
[1720531592652,0.34043082,3077.2,3077.1,2.3335]
[1720531593573,0.34043082,3077.2,3077.0,2.826]
[1720531595173,0.34043082,3077.2,3077.1,3.24981]
[1720531595546,0.34043082,3077.2,3077.0,6.07591]
[1720531597375,0.34043082,3077.2,3077.0,9.32576]
[1720531597707,0.34043082,3077.2,3077.0,6.07585]
[1720531600389,9.7734,3078.1,3077.0,2.826]
[1720531600698,0.34039489,3077.6,3077.0,2.826]
[1720531600844,0.34039489,3077.6,3077.0,6.07589]
[1720531601241,0.34039489,3077.6,3077.0,6.07584]
[1720531601772,0.34039489,3077.6,3077.0,2.826]
[1720531603244,0.34039489,3077.6,3076.8,5.52225]
[1720531603451,0.34039489,3077.6,3077.0,2.826]
[1720531605054,0.34039489,3077.6,3076.8,2.2722]
[1720531605361,0.34039489,3077.6,3077.0,2.826]
[1720531608480,2.3718,3077.5,3077.0,2.826]
[1720531609795,2.3718,3078.2,3077.0,2.826]
[1720531609971,0.34038313,3077.2,3077.0,2.826]
[1720531611301,0.34038313,3077.2,3077.1,2.4711]
[1720531612691,0.34038313,3077.2,3077.1,3.6491]
[1720531613901,0.34038313,3077.2,3077.1,1.178]
[1720531618378,0.34038313,3077.2,3077.1,6.83771]
[1720531618703,0.34038313,3077.2,3077.1,13.08752]
[1720531618905,9.8105,3078.0,3077.2,3.24964]
[1720531619207,2.74089784,3078.0,3077.9,1.178]
[1720531620240,2.4005,3078.0,3077.9,1.178]
[1720531620526,2.4005,3078.0,3077.1,2.4099]
[1720531620727,2.4005,3078.0,3077.7,1.178]
[1720531621697,0.90887017,3077.9,3077.7,1.178]
[1720531622332,2.4005,3078.0,3077.7,1.178]
[1720531623453,2.4005,3078.0,3076.8,2.343]
[1720531623454,0.90906998,3077.9,3076.8,2.343]
[1720531623652,0.90906998,3077.9,3077.4,1.178]
[1720531624248,0.90894343,3077.9,3077.4,1.178]
[1720531625516,0.34037144,3077.8,3077.4,1.178]
[1720531626083,0.34037144,3077.8,3077.6,1.178]
[1720531628251,0.34037144,3077.8,3077.4,1.178]
[1720531630621,2.4768,3077.7,3077.4,1.178]
[1720531630850,0.90892792,3077.6,3077.4,1.178]
[1720531631022,0.90943786,3077.6,3077.4,1.178]
[1720531634283,2.4768,3077.7,3077.4,1.178]
[1720531634557,0.90916013,3077.6,3077.0,2.3152]
[1720531634726,0.90916013,3077.6,3077.5,1.178]
[1720531635252,0.90916013,3077.6,3076.8,0.0171]
[1720531635253,0.90916013,3077.6,3077.3,1.178]
[1720531636758,0.90908657,3077.6,3077.3,1.178]
[1720531637531,0.90912641,3077.6,3077.3,1.178]
[1720531637956,0.90921751,3077.6,3077.3,1.178]
[1720531638526,0.90933641,3077.6,3077.3,1.178]
[1720531639227,0.90933641,3077.6,3077.5,1.178]
[1720531640952,2.4768,3077.7,3077.5,1.178]
[1720531641165,0.90930497,3077.6,3077.5,1.178]
[1720531643793,0.90930497,3077.6,3076.8,0.0171]
[1720531643794,2.3308,3077.5,3076.8,0.0171]
[1720531643953,3.4399,3077.3,3076.8,0.0171]
[1720531644154,2.2619,3077.0,3076.8,0.0171]
[1720531644399,1.178,3077.1,3076.8,0.0171]
[1720531644400,2.08690233,3076.9,3076.8,0.0171]
[1720531644694,8.41529256,3076.9,3076.8,0.0171]
[1720531644908,3.433,3076.6,3075.4,1.178]
[1720531645197,1.178,3076.4,3075.4,1.178]
[1720531645652,0.55,3076.3,3075.4,1.178]
[1720531645984,4.45890233,3076.3,3075.4,1.178]
[1720531646183,1.47259256,3076.2,3075.4,1.178]
[1720531646388,0.55,3076.1,3075.4,1.178]
[1720531646561,4.45890233,3076.3,3074.8,5.83]
[1720531646562,0.90882451,3076.2,3074.8,5.83]
[1720531646764,0.55,3076.1,3074.8,5.83]
[1720531647267,1.45882448,3076.4,3074.8,9.08223]
[1720531647464,0.90881923,3076.3,3075.0,3.25201]
[1720531647668,0.55,3076.2,3075.0,3.25201]
[1720531647892,0.55,3076.4,3075.2,2.83]
[1720531648060,3.0,3076.5,3075.3,3.2517]
[1720531648261,3.0,3076.5,3075.2,9.33351]
[1720531648589,2.3434,3076.6,3075.2,6.08174]
[1720531648790,2.57774,3076.6,3075.2,6.08174]
[1720531648995,3.0,3076.5,3075.3,3.25169]
[1720531649559,3.0,3076.5,3075.2,2.83]
[1720531649796,3.0,3076.5,3075.2,6.08176]
[1720531650091,3.557774,3076.5,3075.2,6.08176]
[1720531650292,3.557774,3076.5,3075.2,2.83]
[1720531650594,0.55,3076.4,3075.2,2.83]
[1720531650958,0.55,3076.4,3074.9,3.25211]
[1720531651288,0.55,3076.4,3075.0,3.0]
[1720531651492,0.4107774,3076.3,3074.9,3.0]
[1720531651787,2.3127,3076.1,3074.9,3.0]
[1720531651991,0.55,3076.0,3074.9,3.0]
[1720531652293,0.83627,3076.0,3074.9,3.0]
[1720531654095,0.83627,3076.0,3074.7,3.0]
[1720531654293,3.83627,3076.0,3074.4,6.08265]
[1720531654493,0.314897,3075.9,3074.4,6.08265]
[1720531654792,0.55,3075.8,3074.4,6.08265]
[1720531655292,0.55,3075.8,3074.4,6.0826]
[1720531655495,0.55,3075.8,3074.5,6.25255]
[1720531658412,0.55,3075.6,3074.4,2.83]
[1720531663121,2.4014,3075.5,3074.4,2.83]
[1720531663402,2.4014,3075.5,3074.1,3.0]
[1720531663403,0.55,3075.4,3074.1,3.0]
[1720531663601,2.69654,3075.3,3074.1,3.0]
[1720531663814,2.4014,3075.3,3074.1,3.0]
[1720531664886,2.4014,3075.3,3074.0,2.83]
[1720531665084,0.55,3075.2,3074.0,2.83]
[1720531665423,2.4237,3075.0,3074.0,2.83]
[1720531666036,0.55,3074.9,3073.7,3.0]
[1720531666216,0.55,3074.9,3073.6,2.83]
[1720531667118,0.55,3074.9,3073.6,6.08349]
[1720531667337,0.55,3074.9,3073.6,9.33693]
[1720531667495,0.84737,3074.9,3073.7,3.0]
[1720531672700,0.84737,3074.9,3073.7,6.25338]
[1720531674284,2.4393,3074.8,3073.7,6.25338]
[1720531674938,2.4393,3074.8,3073.7,3.0]
[1720531675113,2.4072,3074.6,3073.7,3.0]
[1720531675285,2.4072,3074.6,3073.3,3.0]
[1720531675480,2.3187,3074.4,3073.3,3.25383]
[1720531675728,2.3187,3074.4,3073.3,6.5076]
[1720531675905,2.3187,3074.4,3073.4,3.25371]
[1720531676614,2.3187,3074.4,3074.1,1.18]
[1720531680229,2.3234,3074.7,3074.3,1.18]
[1720531680416,2.85574,3074.7,3074.5,1.18]
[1720531680624,2.3234,3074.7,3074.3,1.18]
[1720531680810,2.3234,3074.7,3074.1,1.18]
[1720531681008,2.349,3074.5,3073.9,1.18]
[1720531681808,2.4071,3075.0,3074.0,2.322]
[1720531682016,2.4071,3075.0,3074.6,1.18]
[1720531684151,2.3525,3074.8,3073.5,3.25361]
[1720531684443,2.4676,3074.7,3073.6,1.18]
[1720531684596,2.4676,3074.5,3073.6,1.18]
[1720531684799,0.55,3074.4,3073.6,1.18]
[1720531685219,0.55,3074.4,3073.8,1.18]
[1720531686701,0.55,3074.4,3073.2,3.0]
[1720531686913,0.888236,3074.4,3073.2,3.0]
[1720531687504,2.4507,3074.3,3073.1,2.833]
[1720531687752,0.55,3074.2,3073.1,2.833]
[1720531688104,0.55,3074.2,3072.8,6.25431]
[1720531689003,0.55,3074.2,3072.8,9.50861]
[1720531689200,0.55,3074.2,3072.9,3.25424]
[1720531689443,0.55,3074.2,3073.1,2.833]
[1720531693637,2.4507,3074.3,3073.1,2.833]
[1720531694756,2.4507,3074.3,3073.1,6.08703]
[1720531695750,2.4507,3074.3,3073.1,8.41443]
[1720531696712,2.4507,3074.3,3073.2,0.06507074]
[1720531696915,2.4806,3074.8,3073.7,3.25333]
[1720531697237,2.4806,3074.8,3074.1,2.833]
[1720531697444,2.4806,3074.8,3074.1,6.08598]
[1720531697624,2.4806,3075.4,3074.5,2.833]
[1720531698225,2.4806,3075.4,3074.0,3.25303]
[1720531698463,2.4806,3075.4,3074.1,2.833]
[1720531698657,0.90684455,3075.3,3074.1,2.833]
[1720531698802,2.66854445,3075.2,3073.7,2.833]
[1720531699008,2.3298,3075.2,3073.8,3.0]
[1720531699206,2.4881,3075.0,3073.8,3.0]
[1720531699621,2.4881,3075.0,3073.8,6.2533]
[1720531700451,2.4881,3075.0,3073.8,3.0]
[1720531700659,2.4881,3075.0,3073.8,6.25329]
[1720531701011,2.4881,3075.0,3073.8,3.0]
[1720531701335,0.24881,3074.9,3073.8,6.25327]
[1720531702454,0.24881,3074.9,3073.8,3.0]
[1720531703547,2.2614,3074.8,3073.8,3.0]
[1720531703802,2.2614,3074.8,3073.7,2.833]
[1720531703950,0.90699507,3074.7,3073.7,2.833]
[1720531704309,2.2614,3074.8,3073.7,2.833]
[1720531704759,0.90700024,3074.7,3073.7,2.833]
[1720531704963,0.31684002,3074.6,3073.7,2.833]
[1720531705357,2.2614,3074.8,3073.7,2.833]
[1720531705972,2.2614,3074.8,3073.2,3.0]
[1720531705973,2.2614,3074.8,3074.1,2.833]
[1720531706178,2.4038,3075.4,3074.5,2.833]
[1720531707083,2.4038,3075.4,3074.2,3.0]
[1720531707285,0.9077133,3075.3,3074.2,3.0]
[1720531707467,0.90769171,3075.3,3074.2,3.0]
[1720531707663,0.90771811,3075.3,3074.2,3.0]
[1720531708470,2.4038,3075.4,3074.2,3.0]
[1720531708649,2.64418,3075.4,3074.2,3.0]
[1720531708957,2.64418,3075.4,3074.0,3.25308]
[1720531708958,2.4646,3075.2,3074.0,3.25308]
[1720531709170,0.90758409,3075.1,3074.0,3.25308]
[1720531709492,0.33721841,3075.0,3074.0,3.25308]
[1720531711074,0.33721841,3075.0,3073.8,2.833]
[1720531711275,2.3799,3074.9,3073.9,3.0]
[1720531711843,0.90758544,3074.8,3073.9,3.0]
[1720531712055,2.3799,3074.9,3073.9,3.0]
[1720531712960,2.3799,3074.9,3074.0,0.06505598]
[1720531713164,2.3799,3074.9,3074.2,2.833]
[1720531713547,2.61789,3074.9,3074.2,2.833]
[1720531713757,2.61789,3074.9,3073.5,2.3829]
[1720531713970,2.61789,3074.9,3073.5,5.3829]
[1720531714583,2.61789,3074.9,3073.8,2.833]
[1720531717484,2.61789,3074.9,3073.5,3.0]
[1720531717658,2.3032,3074.7,3073.5,2.833]
[1720531724485,2.8348,3074.6,3073.5,2.833]
[1720531725601,2.8348,3074.6,3073.2,3.0]
[1720531727678,2.8348,3074.6,3073.1,2.833]
[1720531727885,2.4796,3074.4,3073.1,2.833]
[1720531731909,2.4796,3074.4,3073.5,2.833]
[1720531732276,2.4796,3074.4,3073.1,2.833]
[1720531734918,2.3988,3074.2,3072.8,3.0]
[1720531735129,2.3988,3074.0,3072.8,3.0]
[1720531736247,2.3988,3074.0,3073.1,2.833]
[1720531753235,2.3988,3074.0,3072.7,2.833]
[1720531754747,2.3988,3074.0,3073.2,1.181]
[1720531755572,2.3988,3074.0,3073.4,1.181]
[1720531755726,2.4378,3073.8,3073.4,1.181]
[1720531756231,2.4378,3073.8,3073.6,1.181]
[1720531756431,2.4451,3074.5,3073.6,1.181]
[1720531756752,2.4451,3074.5,3073.4,2.833]
[1720531756931,7.41,3075.1,3073.4,2.833]
[1720531756932,2.4451,3074.4,3073.4,2.833]
[1720531757355,2.4451,3074.4,3073.0,2.833]
[1720531758019,2.4451,3074.4,3073.0,2.8089102]
[1720531759958,2.4451,3074.4,3073.0,6.0630502]
[1720531760166,2.3511,3074.2,3073.0,6.0630502]
[1720531760588,2.3511,3074.2,3073.1,3.25403]
[1720531760737,2.3511,3074.2,3073.0,6.0630502]
[1720531761268,2.3511,3074.2,3073.0,2.833]
[1720531765772,2.3511,3074.2,3073.0,6.08712]
[1720531766268,2.3511,3074.2,3073.0,2.833]
[1720531769956,2.3511,3074.2,3073.1,3.0]
[1720531770152,2.3511,3074.2,3073.2,0.06506678]
[1720531771543,2.3511,3074.2,3073.1,6.25403]
[1720531771886,2.3511,3074.2,3073.4,2.833]
[1720531773672,2.3511,3074.2,3073.5,0.06506656]
[1720531774275,0.90809229,3074.1,3073.5,0.06506656]
[1720531774475,2.3511,3074.2,3073.5,0.06506656]
[1720531774700,2.3511,3074.2,3073.5,3.31861656]
[1720531775215,2.3511,3074.2,3073.8,2.833]
[1720531778785,3.0,3075.0,3073.8,2.833]
[1720531778786,2.4353,3074.9,3073.8,2.833]
[1720531779102,2.4353,3074.7,3073.8,2.833]
[1720531779299,0.90824655,3074.6,3073.8,2.89805599]
[1720531779504,2.4353,3074.7,3073.8,2.89805599]
[1720531779989,2.4353,3074.7,3073.8,2.833]
[1720531780817,2.4353,3074.7,3074.4,1.18]
[1720531785258,3.0,3075.3,3074.6,1.18]
[1720531785259,2.394,3075.3,3074.6,1.18]
[1720531785520,2.394,3075.3,3075.2,1.18]
[1720531785683,2.394,3075.3,3074.1,3.25291]
[1720531785684,2.394,3075.3,3075.0,1.18]
[1720531785890,2.394,3075.3,3074.6,1.18]
[1720531787443,2.394,3075.3,3074.8,1.18]
[1720531787607,2.4493,3075.1,3074.8,1.18]
[1720531790526,2.4493,3075.1,3073.6,3.25345]
[1720531790737,2.4493,3075.1,3074.4,1.18]
[1720531791142,2.4493,3075.1,3073.6,3.25345]
[1720531791312,2.69313,3075.0,3074.5,1.18]
[1720531791534,2.4482,3074.8,3074.5,1.18]
[1720531794438,2.4482,3074.8,3074.7,1.18]
[1720531796620,2.4393,3075.4,3074.7,1.18]
[1720531796821,2.4393,3075.4,3073.9,5.65069]
[1720531796822,1.09393,3075.3,3074.9,1.18]
[1720531797073,2.4393,3075.2,3074.9,1.18]
[1720531797244,5.4393,3075.2,3074.9,1.18]
[1720531798866,2.2815,3075.1,3074.5,1.18]
[1720531799106,2.2815,3075.0,3074.5,1.18]
[1720531799245,5.2815,3075.0,3074.5,1.18]
[1720531800392,5.2815,3075.0,3073.9,2.3975]
[1720531800393,5.2815,3075.0,3074.9,1.18]
[1720531800613,3.33465043,3076.2,3074.9,1.18]
[1720531800743,2.74137504,3076.1,3074.0,6.25303]
[1720531800943,1.18,3075.7,3074.1,2.3979]
[1720531801157,1.18,3075.7,3073.7,2.3979]
[1720531801158,2.3753,3075.2,3073.7,2.3979]
[1720531801443,2.3753,3075.2,3074.1,1.18]
[1720531801886,2.3753,3075.1,3074.1,1.18]
[1720531802070,2.3753,3074.9,3074.1,1.18]
[1720531802273,0.29253,3074.8,3074.3,1.18]
[1720531802677,2.3753,3074.7,3074.3,1.18]
[1720531802846,2.3753,3074.5,3073.8,1.18]
[1720531803048,2.3753,3074.5,3073.6,1.18]
[1720531803269,2.3753,3074.3,3073.4,1.18]
[1720531803549,0.55,3074.2,3073.6,1.18]
[1720531804540,0.55,3074.2,3073.2,2.833]
[1720531804744,2.3753,3074.3,3073.2,2.833]
[1720531804942,3.429,3074.9,3072.8,2.3979]
[1720531804943,2.3753,3074.7,3073.9,2.833]
[1720531805246,2.3753,3074.7,3073.5,2.833]
[1720531805584,2.61283,3074.7,3073.5,2.833]
[1720531805949,2.4536,3074.5,3073.5,2.833]
[1720531806448,0.55,3074.4,3073.5,2.833]
[1720531806646,3.55,3074.4,3073.5,2.833]
[1720531807268,3.0,3074.4,3073.5,2.833]
[1720531807450,2.4536,3074.5,3073.5,2.833]
[1720531808780,2.4536,3074.5,3073.3,2.3979]
[1720531808781,2.935,3074.4,3073.1,2.833]
[1720531809083,2.935,3074.4,3072.6,6.08747]
[1720531809084,2.4861,3074.2,3072.6,6.08747]
[1720531809298,3.03471,3074.1,3072.7,3.25446]
[1720531809605,3.55,3074.0,3072.7,3.25446]
[1720531810179,3.55,3074.0,3072.6,6.08748]
[1720531810180,3.55,3074.0,3072.8,3.25432]
[1720531810582,3.55,3074.0,3072.8,6.50861]
[1720531810784,3.55,3074.0,3072.8,6.50858]
[1720531810994,0.60361,3073.9,3072.9,3.25423]
[1720531811498,0.60361,3073.9,3072.9,3.2542]
[1720531811794,0.60361,3073.9,3072.9,6.50835]
[1720531812001,0.60361,3073.9,3073.0,3.25414]
[1720531812201,0.415361,3073.8,3073.0,3.25414]
[1720531812699,0.415361,3073.8,3072.9,3.25424]
[1720531813197,0.415361,3073.8,3072.9,6.50841]
[1720531813346,0.415361,3073.8,3072.9,3.25417]
[1720531813751,2.3237,3073.7,3072.9,3.25417]
[1720531813976,0.2739061,3073.6,3072.7,3.25439]
[1720531814755,0.2739061,3073.6,3072.6,2.833]
[1720531814976,2.469,3073.5,3072.4,3.25473]
[1720531815173,2.469,3073.5,3072.2,8.2611]
[1720531815174,2.469,3073.4,3072.2,2.833]
[1720531815378,2.469,3073.2,3072.1,3.2551]
[1720531815675,5.469,3073.2,3072.1,3.2551]
[1720531816102,2.469,3073.2,3071.9,3.25521]
[1720531816264,2.469,3073.2,3072.0,3.2552]
[1720531816668,2.469,3073.2,3072.1,3.25509]
[1720531816910,2.469,3073.2,3072.1,3.25503]
[1720531818064,2.469,3073.2,3072.2,2.833]
[1720531818267,2.469,3073.2,3072.5,3.25461]
[1720531818600,2.469,3073.2,3072.2,2.833]
[1720531818909,2.469,3073.2,3072.3,3.25486]
[1720531819570,2.469,3073.2,3072.4,3.25478]
[1720531820508,2.2656,3073.6,3072.6,6.08755]
[1720531820664,2.2656,3073.6,3073.1,2.833]
[1720531820866,2.2656,3074.5,3073.1,2.833]
[1720531821089,2.2656,3074.5,3072.8,3.25427]
[1720531821295,2.2656,3074.5,3072.7,2.833]
[1720531821296,2.60621475,3074.5,3072.9,3.25423]
[1720531821520,2.2776,3074.3,3072.9,3.25423]
[1720531821943,2.2776,3074.3,3072.7,2.833]
[1720531822425,2.2776,3074.3,3072.7,6.08744]
[1720531822637,2.2776,3074.2,3072.7,6.08744]
[1720531822786,0.45552,3074.1,3072.8,3.2543]
[1720531822988,0.55,3074.0,3072.8,6.50858]
[1720531823184,0.55,3074.0,3072.9,3.25423]
[1720531823501,2.2776,3073.8,3072.7,3.25446]
[1720531823710,2.2776,3073.8,3072.6,2.833]
[1720531823890,2.2776,3073.6,3072.4,3.25478]
[1720531824200,2.2776,3073.6,3072.4,3.25473]
[1720531824201,0.28276,3073.5,3072.4,3.25473]
[1720531824404,0.28276,3073.5,3072.4,6.50945]
[1720531824597,3.28276,3073.5,3072.4,3.25472]
[1720531824904,0.556036,3073.4,3072.4,6.50943]
[1720531825103,3.0,3073.5,3072.6,2.833]
[1720531825370,2.2776,3073.6,3072.6,2.833]
[1720531828132,0.55,3073.5,3072.2,2.833]
[1720531828339,3.77776,3073.5,3072.2,6.08794]
[1720531830301,3.77776,3073.5,3072.3,3.25487]
[1720531831055,3.77776,3073.5,3072.6,2.833]
[1720531832418,3.0,3073.5,3072.6,6.08755]
[1720531832643,2.2776,3073.6,3072.6,6.08755]
[1720531832958,2.2776,3073.6,3072.6,6.1526344]
[1720531833315,2.2776,3073.6,3072.6,6.08755]
[1720531833965,2.2776,3073.6,3072.6,6.15263444]
[1720531834624,1.958,3074.4,3072.6,6.15263444]
[1720531834625,2.3691,3074.3,3073.3,6.08681]
[1720531835458,2.3691,3074.3,3073.4,0.06506827]
[1720531835756,2.3691,3074.3,3073.7,2.833]
[1720531837557,2.3905,3074.8,3074.0,3.25307]
[1720531838127,2.3905,3074.8,3074.1,3.25297]
[1720531838456,2.3905,3075.5,3074.1,6.08597]
[1720531838666,0.61597591,3075.4,3074.1,6.08597]
[1720531838819,3.61597591,3075.4,3074.1,6.08597]
[1720531839014,3.61597591,3075.4,3074.1,2.833]
[1720531839264,2.4047,3075.1,3073.7,2.833]
[1720531839475,2.4047,3075.1,3073.7,6.0864]
[1720531839785,5.4047,3075.1,3073.7,6.0864]
[1720531840136,0.55,3075.0,3073.7,6.0864]
[1720531840367,3.55,3075.0,3073.7,6.0864]
[1720531840547,0.89547,3074.9,3073.7,6.0864]
[1720531840729,0.55,3074.8,3073.7,6.0864]
[1720531841359,0.55,3074.8,3073.7,2.833]
[1720531842282,2.3679,3074.7,3073.3,2.833]
[1720531842466,0.84179,3074.6,3073.3,2.833]
[1720531842667,3.84179,3074.6,3073.3,2.833]
[1720531843747,3.84179,3074.6,3073.6,3.25351]
[1720531843946,3.29179,3074.6,3073.6,3.25351]
[1720531844182,3.0,3074.6,3073.6,3.25351]
[1720531844386,2.3679,3074.7,3073.7,2.833]
[1720531844900,2.3679,3074.7,3073.8,0.06506131]
[1720531845055,2.3679,3074.7,3073.9,3.25318]
[1720531845258,2.4081,3075.2,3074.1,2.833]
[1720531845457,2.4081,3075.2,3074.2,3.31783814]
[1720531845778,2.4081,3075.2,3074.5,2.833]
[1720531845976,2.4081,3075.2,3074.3,3.25276]
[1720531846287,2.68506976,3075.2,3074.3,3.25276]
[1720531846465,2.68506976,3075.2,3074.3,3.31780621]
[1720531846650,1.958,3076.2,3074.5,9.33802]
[1720531846651,2.2958,3076.2,3074.5,9.33802]
[1720531846849,0.90775831,3076.1,3074.6,0.06504005]
[1720531847056,0.22958,3076.1,3074.9,2.833]
[1720531847367,0.22958,3076.1,3075.0,3.31697299]
[1720531847548,2.2958,3076.7,3075.7,6.08428]
[1720531848088,2.2958,3076.7,3075.7,2.833]
[1720531849552,2.2958,3076.7,3075.8,0.06501541]
[1720531849753,3.429,3077.3,3075.8,0.06501541]
[1720531849754,2.4045,3077.3,3075.8,0.0650154]
[1720531849989,2.4045,3077.3,3075.8,3.3160954]
[1720531850362,2.4045,3077.3,3076.1,2.833]
[1720531850754,2.4045,3077.3,3075.7,6.08419]
[1720531851087,5.387,3077.3,3075.3,2.833]
[1720531851293,2.833,3077.5,3074.9,3.0]
[1720531851294,5.8631,3077.1,3074.9,6.25213]
[1720531851451,2.4341,3076.8,3074.8,2.833]
[1720531851666,5.387,3076.5,3074.4,2.833]
[1720531851870,3.429,3076.3,3074.8,2.833]
[1720531852171,3.429,3076.0,3074.4,2.833]
[1720531852596,6.979,3075.9,3074.4,2.833]
[1720531852808,0.6979,3075.8,3074.4,2.833]
[1720531853103,0.55,3075.7,3074.4,2.833]
[1720531853693,3.55,3075.7,3074.4,2.833]
[1720531853897,0.55,3075.7,3074.4,2.833]
[1720531854807,0.55,3075.7,3074.5,0.06504426]
[1720531854983,3.0,3075.9,3074.7,7.02727]
[1720531855187,5.4095,3076.1,3074.8,3.31726128]